bitfinex-derivatives/quotes_ETHF0:USTF0_20250923
["timestamp","ask_amount","ask_price","bid_price","bid_amount"]
[1758647381809,0.4382,4182.0,4181.9,0.43016]
[1758647382014,0.9386,4183.0,4182.9,0.43006]
[1758647382216,2.04033636,4183.0,4182.9,0.43006]
[1758647382511,0.3071,4182.9,4182.7,0.43007]
[1758647382703,0.4382,4183.2,4182.6,0.247]
[1758647382904,0.4382,4183.2,4183.1,3.63784]
[1758647383102,0.618,4183.5,4183.4,0.43001]
[1758647383813,1.2442,4183.5,4183.2,0.43003]
[1758647384017,1.0644,4183.4,4183.3,0.43001]
[1758647385519,1.0644,4183.4,4183.2,0.43002]
[1758647385913,0.43002,4183.3,4183.1,3.63784]
[1758647386118,1.0644,4183.2,4183.1,3.63784]
[1758647386319,0.4382,4183.2,4183.1,3.63784]
[1758647386619,0.7453,4183.2,4183.1,3.63784]
[1758647387318,1.0644,4183.2,4183.1,3.63784]
[1758647393826,1.49443,4183.2,4183.1,3.2078]
[1758647394129,0.6018,4182.8,4182.7,0.43008]
[1758647394329,1.0576,4182.8,4182.7,0.43008]
[1758647396330,0.4558,4182.8,4182.7,0.43008]
[1758647397124,0.7596,4182.8,4182.7,0.43008]
[1758647397325,1.0576,4182.8,4182.7,0.43008]
[1758647408039,0.4558,4182.7,4182.6,3.2078]
[1758647408237,1.48773,4182.2,4182.1,3.2078]
[1758647409930,1.48773,4182.2,4182.1,3.63794]
[1758647411038,1.48773,4182.2,4182.1,3.2078]
[1758647411238,0.4302,4181.6,4181.5,3.638]
[1758647411438,0.4302,4181.6,4181.5,3.2078]
[1758647411439,1.7367,4181.6,4181.5,3.2078]
[1758647411635,1.02845,4181.1,4181.0,3.2078]
[1758647411834,1.73675,4181.1,4181.0,3.2078]
[1758647412840,1.3065,4181.1,4181.0,3.2078]
[1758647417535,1.49078,4180.8,4180.7,0.43028]
[1758647418237,1.2348,4180.5,4180.4,3.63812]
[1758647418829,1.66511,4180.5,4180.4,3.63812]
[1758647419136,1.66511,4180.5,4180.4,3.2078]
[1758647419639,1.2348,4180.0,4179.9,3.63817]
[1758647419845,0.3093,4179.7,4179.6,0.4304]
[1758647420146,0.7716,4179.7,4179.6,0.4304]
[1758647420337,0.4623,4179.7,4179.6,0.4304]
[1758647421637,0.7716,4179.7,4179.6,0.4304]
[1758647425938,0.621,4180.0,4179.9,0.43037]
[1758647426143,0.6927,4180.3,4180.2,0.43034]
[1758647426345,0.6927,4180.6,4180.4,0.43032]
[1758647426550,0.621,4180.5,4180.4,0.43032]
[1758647427244,0.935,4180.5,4180.4,0.43032]
[1758647428737,0.935,4180.5,4180.1,0.246]
[1758647428738,1.0492,4180.3,4180.2,0.43034]
[1758647429141,1.2238,4180.0,4179.9,3.63817]
[1758647430245,1.2238,4180.0,4179.9,3.2078]
[1758647430544,1.2238,4180.0,4179.9,3.63817]
[1758647430848,0.9353,4180.0,4179.9,3.63817]
[1758647431849,0.6213,4180.0,4179.9,3.63817]
[1758647432442,0.1743,4180.5,4179.9,3.63817]
[1758647432650,0.1743,4180.5,4180.4,0.43032]
[1758647433146,0.935,4180.5,4180.4,0.43032]
[1758647434045,1.2235,4180.5,4180.4,0.43032]
[1758647437845,1.2235,4180.5,4179.9,3.2078]
[1758647438143,1.2238,4180.0,4179.9,3.63816]
[1758647440947,0.6213,4180.0,4179.9,3.63816]
[1758647443243,0.4883,4181.0,4180.9,0.91447]
[1758647443447,3.2078,4181.4,4181.3,1.06573]
[1758647443651,0.1743,4181.5,4181.3,1.06573]
[1758647443854,0.4467,4181.4,4181.3,1.06573]
[1758647445848,0.7607,4181.4,4181.3,0.91443]
[1758647446954,1.0492,4181.4,4181.3,0.4842]
[1758647447861,1.2238,4181.0,4180.9,3.88017]
[1758647448354,1.2238,4181.0,4180.9,3.4499]
[1758647448556,1.65406,4181.0,4180.9,3.4499]
[1758647448755,1.65406,4181.0,4180.9,3.2078]
[1758647448961,1.65406,4181.0,4180.9,3.63807]
[1758647449362,1.65406,4181.0,4180.9,3.2078]
[1758647449770,1.65406,4181.0,4180.9,3.63807]
[1758647450469,1.2238,4181.0,4180.9,3.88017]
[1758647451267,1.2238,4181.0,4180.9,4.12227]
[1758647452762,1.2238,4181.0,4180.9,3.88017]
[1758647453270,1.2238,4181.0,4180.9,4.12227]
[1758647454165,0.1875,4180.0,4179.8,3.2078]
[1758647454368,1.0296,4179.9,4179.8,3.85738]
[1758647455575,0.4362,4179.9,4179.8,4.21358]
[1758647455762,1.0296,4179.9,4179.8,3.6462]
[1758647456169,1.0296,4179.9,4179.8,4.07658]
[1758647456475,1.45997,4179.9,4179.8,3.8922]
[1758647456676,1.45997,4179.9,4179.8,4.32258]
[1758647457169,1.0296,4179.9,4179.8,4.32258]
[1758647457576,1.0296,4179.9,4179.8,4.07658]
[1758647458073,0.4362,4179.9,4179.8,4.21358]
[1758647458472,0.4335,4180.5,4180.4,0.86872]
[1758647458473,0.4748,4180.5,4180.4,0.86872]
[1758647458661,0.4748,4180.5,4180.4,0.4384]
[1758647458870,0.90511,4180.5,4180.4,0.4384]
[1758647459065,0.6237,4180.5,4180.4,4.07652]
[1758647459875,0.911,4180.5,4180.4,4.07652]
[1758647460272,0.911,4180.5,4180.4,3.6462]
[1758647460273,1.34131,4180.5,4180.4,3.6462]
[1758647460485,1.64741,4180.5,4180.4,3.2078]
[1758647460978,0.1875,4179.5,4179.4,3.2078]
[1758647461172,1.64751,4179.5,4179.4,3.2078]
[1758647462178,0.5934,4178.9,4178.8,3.427]
[1758647462372,1.0296,4178.9,4178.8,3.6462]
[1758647465369,0.4362,4178.9,4178.8,3.7832]
[1758647466170,0.4362,4178.9,4178.8,3.6462]
[1758647466774,0.4362,4178.9,4178.8,3.7832]
[1758647467874,0.4362,4178.9,4178.8,4.21368]
[1758647469379,0.4362,4178.9,4178.8,4.45968]
[1758647470784,1.0296,4178.9,4178.8,4.07668]
[1758647470980,1.0296,4178.9,4178.8,3.427]
[1758647471286,1.0296,4178.9,4178.8,3.85748]
[1758647471480,1.46007,4178.9,4178.8,3.427]
[1758647471682,0.4669,4178.0,4177.9,0.44733576]
[1758647471874,0.4669,4178.0,4176.8,3.2078]
[1758647471875,0.7692,4177.5,4176.8,3.2078]
[1758647472076,0.7692,4177.5,4177.4,0.51304648]
[1758647472077,1.2159,4177.5,4177.4,0.51304648]
[1758647472277,1.2159,4177.5,4177.4,3.72084648]
[1758647472476,0.1769,4178.0,4177.9,0.25]
[1758647472791,0.7692,4178.0,4177.9,0.5]
[1758647473084,0.6236,4178.0,4177.9,0.6563]
[1758647473281,0.6236,4178.0,4177.9,3.8641]
[1758647473483,0.6236,4178.0,4177.9,4.1101]
[1758647473484,0.4467,4178.0,4177.9,4.1101]
[1758647473780,0.43047,4178.9,4178.4,0.6563]
[1758647473979,0.72047,4178.9,4178.8,0.5]
[1758647474174,0.5923,4178.9,4178.8,0.5]
[1758647474372,1.039,4178.9,4178.8,0.25]
[1758647474574,1.039,4178.9,4178.8,0.5]
[1758647474884,0.7367,4178.9,4178.8,0.5]
[1758647475886,1.039,4178.9,4178.8,0.5]
[1758647476180,1.039,4178.9,4178.8,0.25]
[1758647476984,1.039,4178.9,4178.8,0.5]
[1758647478686,0.7367,4178.9,4178.8,0.5]
[1758647478985,0.4467,4178.9,4178.8,0.5]
[1758647479188,1.2159,4179.5,4179.4,0.93042]
[1758647479479,1.2159,4179.5,4178.9,4.13827]
[1758647479480,0.9136,4179.0,4178.9,4.13827]
[1758647479885,0.4467,4179.0,4178.9,4.29457]
[1758647480080,0.9136,4179.0,4178.9,4.13827]
[1758647480387,0.6236,4179.0,4178.9,4.29457]
[1758647480592,1.64636,4179.0,4178.9,3.2078]
[1758647480782,1.039,4178.7,4178.6,0.246]
[1758647481085,1.039,4178.7,4178.5,0.43051]
[1758647481288,1.46949,4178.7,4178.6,0.25]
[1758647482392,0.4467,4178.7,4178.6,0.9305]
[1758647482684,3.2078,4179.3,4179.2,0.43044]
[1758647482891,3.4978,4179.3,4179.2,0.93044]
[1758647483092,3.9434,4179.3,4179.2,0.93044]
[1758647483388,4.2427,4179.3,4179.2,0.5]
[1758647483579,4.67313,4179.3,4179.2,0.25]
[1758647483780,4.2427,4179.3,4179.2,0.68044]
[1758647484086,1.46533,4179.3,4179.2,0.68044]
[1758647484290,0.1768,4179.0,4178.9,3.63827]
[1758647484486,1.64136,4179.0,4178.9,3.87867]
[1758647484687,1.64136,4179.0,4178.9,3.2078]
[1758647487795,1.01898,4178.8,4178.7,0.43049]
[1758647488095,0.43051,4178.6,4178.5,0.43051]
[1758647488386,1.64141,4178.5,4178.4,3.2078]
[1758647489182,1.64141,4178.5,4178.4,3.63833]
[1758647489383,1.2109,4178.5,4178.4,3.87873]
[1758647489585,1.01897,4178.9,4178.8,0.2404]
[1758647489785,1.19581,4178.5,4178.4,3.4482]
[1758647490289,1.64141,4178.5,4178.4,3.87873]
[1758647490497,1.64141,4178.5,4178.4,3.2078]
[1758647490793,0.89657,4178.0,4177.9,3.2078]
[1758647491092,0.4456,4178.3,4177.9,3.6886]
[1758647491289,0.4456,4178.3,4178.2,0.91134]
[1758647491491,1.16534,4178.3,4178.2,0.91134]
[1758647491693,1.0341,4178.3,4178.2,0.67094]
[1758647491890,1.46464,4178.3,4178.2,0.2404]
[1758647492286,1.0341,4178.3,4178.2,0.67095]
[1758647492594,0.7348,4178.3,4178.2,0.91135]
[1758647492789,1.0341,4178.3,4178.2,0.91135]
[1758647492985,0.7348,4178.3,4178.2,0.91135]
[1758647493189,0.6224,4178.5,4178.4,0.91133]
[1758647493390,0.6224,4178.5,4178.4,1.06163]
[1758647493893,0.2892,4177.6,4177.5,0.2404]
[1758647494094,0.4456,4177.9,4177.8,0.6311]
[1758647494289,0.71978,4177.9,4177.8,0.4808]
[1758647494594,0.1768,4178.0,4177.5,0.3963]
[1758647494595,0.71981,4177.6,4177.5,0.7268]
[1758647494794,1.16541,4177.6,4177.5,0.7268]
[1758647494994,1.16541,4177.6,4177.5,0.4808]
[1758647495190,1.64152,4177.5,4177.4,0.01304648]
[1758647499303,1.88752,4177.5,4177.4,0.01304648]
[1758647502907,1.88752,4177.5,4177.4,0.25344648]
[1758647503198,0.6224,4177.5,4177.4,1.07477648]
[1758647503402,0.6224,4177.5,4177.4,0.92447648]
[1758647503798,1.34222,4177.5,4177.4,0.92447648]
[1758647504799,1.64152,4177.5,4177.4,0.49384648]
[1758647505007,1.64152,4177.5,4177.4,0.25344648]
[1758647505199,1.2109,4177.5,4177.4,0.25344648]
[1758647505708,1.64152,4177.5,4177.4,0.25344648]
[1758647506008,1.2109,4177.5,4177.4,0.68407648]
[1758647506213,0.6224,4177.5,4177.4,1.07477648]
[1758647506712,1.34222,4177.5,4177.4,0.92447648]
[1758647506903,0.9116,4177.5,4177.4,0.92447648]
[1758647507106,0.6224,4177.5,4177.4,1.07477648]
[1758647507301,1.05302,4177.5,4177.4,0.92447648]
[1758647507505,1.34222,4177.5,4177.4,0.49384648]
[1758647507906,1.34222,4177.5,4177.4,0.92447648]
[1758647508317,1.64152,4177.5,4177.4,0.25344648]
[1758647509412,1.64152,4177.5,4177.4,0.01304648]
[1758647510118,1.64152,4177.5,4177.4,0.44367648]
[1758647510414,1.64152,4177.5,4177.4,0.92447648]
[1758647510415,1.2109,4177.5,4177.4,0.92447648]
[1758647510625,1.64152,4177.5,4177.4,0.92447648]
[1758647512002,1.64152,4177.5,4177.4,0.49384648]
[1758647512208,1.64152,4177.5,4177.4,0.92447648]
[1758647512707,1.64152,4177.5,4177.4,0.49384648]
[1758647513118,1.64152,4177.5,4177.4,0.92447648]
[1758647513318,1.2109,4177.5,4177.4,0.92447648]
[1758647513721,1.64152,4177.5,4177.4,0.49384648]
[1758647514123,1.2109,4177.5,4177.4,0.92447648]
[1758647514314,1.64152,4177.5,4177.4,0.92447648]
[1758647514714,1.64152,4177.5,4177.4,0.25344648]
[1758647514914,1.2109,4177.5,4177.4,0.68407648]
[1758647515313,0.9116,4177.5,4177.4,0.89997648]
[1758647515521,0.6224,4177.5,4177.4,1.03487648]
[1758647515722,1.1905,4177.5,4177.4,0.46934648]
[1758647516019,1.1905,4177.5,4177.4,0.89997648]
[1758647516714,1.62112,4177.5,4177.4,0.25344648]
[1758647516921,1.62112,4177.5,4177.4,0.01304648]
[1758647521325,9.3983,4177.5,4176.5,3.2078]
[1758647521531,1.0106,4176.1,4176.0,3.2078]
[1758647521720,1.0106,4175.8,4175.7,0.2367]
[1758647521919,0.7262,4175.8,4175.7,0.4734]
[1758647522224,0.624,4176.0,4175.9,0.4734]
[1758647522423,0.9077,4176.0,4175.9,0.4734]
[1758647522613,1.1921,4176.0,4175.9,0.4734]
[1758647523515,1.1921,4176.0,4175.5,3.2078]
[1758647523832,1.0106,4175.6,4175.5,3.4445]
[1758647524218,1.0106,4175.6,4175.5,3.6812]
[1758647526030,0.4425,4175.6,4175.5,3.9272]
[1758647526328,0.7262,4175.6,4175.5,3.6812]
[1758647526623,1.0106,4175.6,4175.5,3.9272]
[1758647526832,1.0106,4175.6,4175.5,4.35802]
[1758647527929,0.7262,4175.6,4175.5,4.35802]
[1758647528731,1.0106,4175.6,4175.5,4.35802]
[1758647528929,1.44141,4175.6,4175.5,3.4538]
[1758647529325,1.44141,4175.6,4175.5,3.2078]
[1758647530926,0.1815,4176.0,4175.9,0.5657]
[1758647531124,0.4652,4176.0,4175.9,0.8982]
[1758647531435,1.18037,4176.0,4175.9,0.5657]
[1758647531733,1.18037,4176.0,4175.7,0.246]
[1758647531734,0.99803,4176.4,4176.3,0.5588]
[1758647531921,0.99803,4176.4,4176.3,0.98954]
[1758647531922,0.5673,4176.4,4176.3,0.98954]
[1758647532121,0.1815,4177.0,4176.9,1.31298]
[1758647532326,0.2846,4177.2,4177.1,1.31295]
[1758647532924,0.7158,4177.2,4177.1,1.31295]
[1758647533228,0.7158,4177.2,4177.1,0.8823]
[1758647533531,0.4312,4177.2,4177.1,0.8823]
[1758647533928,0.4312,4177.5,4177.4,1.31293]
[1758647534233,0.7158,4177.9,4177.8,0.5588]
[1758647534425,0.7158,4177.9,4177.8,0.8823]
[1758647535027,0.9985,4178.3,4178.2,0.5588]
[1758647535430,0.5673,4178.1,4178.0,0.5256]
[1758647535634,0.9985,4178.1,4178.0,0.5256]
[1758647537733,0.9985,4178.1,4178.0,0.8048]
[1758647537929,0.7158,4178.1,4178.0,0.8048]
[1758647538228,0.1769,4179.0,4178.4,0.8823]
[1758647538435,0.2846,4178.9,4178.8,0.98928]
[1758647538629,0.7158,4178.9,4178.8,0.98928]
[1758647539126,0.4312,4178.8,4178.5,3.2078]
[1758647539329,0.9985,4178.6,4178.5,3.2078]
[1758647541734,0.9985,4178.6,4178.5,3.7666]
[1758647541935,0.4615,4179.0,4178.9,0.5588]
[1758647542133,0.5673,4178.6,4178.5,3.4874]
[1758647542328,0.5673,4178.6,4178.5,3.2078]
[1758647542533,0.9985,4178.6,4178.5,3.2078]
[1758647542836,0.9985,4178.6,4178.5,3.4874]
[1758647543132,0.9985,4178.6,4178.5,3.2078]
[1758647543533,0.9985,4178.6,4178.5,3.4963]
[1758647545034,1.429,4178.6,4178.5,3.2078]
[1758647546538,0.9985,4178.6,4178.5,3.7715]
[1758647546939,0.1769,4179.0,4178.5,4.52101]
[1758647547135,1.45738,4178.9,4178.8,0.2885]
[1758647547343,0.5796,4178.6,4178.5,3.4538]
[1758647547538,1.0269,4178.6,4178.5,3.7423]
[1758647547732,1.4574,4178.6,4178.5,3.4963]
[1758647547941,1.4574,4178.6,4178.5,3.7423]
[1758647548148,1.0269,4178.6,4178.5,3.7423]
[1758647548340,1.4574,4178.6,4178.5,3.7423]
[1758647548842,0.7399,4178.6,4178.5,4.44801]
[1758647549144,0.7399,4178.6,4178.5,4.0175]
[1758647549338,1.0269,4178.6,4178.5,4.0175]
[1758647549533,1.4574,4178.6,4178.5,4.0175]
[1758647549739,1.4574,4178.6,4178.5,3.2078]
[1758647551538,1.0269,4178.6,4178.5,3.92681]
[1758647551739,1.4574,4178.6,4178.5,3.4963]
[1758647552342,1.0269,4178.6,4178.5,4.20201]
[1758647552541,0.4473,4178.9,4178.8,0.8827]
[1758647552843,1.0269,4178.9,4178.8,0.5637]
[1758647553139,1.45737,4178.9,4178.8,0.5637]
[1758647553346,1.0269,4178.9,4178.8,0.99418]
[1758647553543,0.4473,4178.9,4178.8,1.31318]
[1758647553845,0.9168,4179.0,4178.9,0.5637]
[1758647554547,1.34726,4179.0,4178.9,0.5637]
[1758647554749,0.9168,4179.0,4178.9,0.5637]
[1758647554948,0.9168,4179.0,4178.9,0.99417]
[1758647555945,0.9168,4179.0,4178.9,1.24017]
[1758647557041,0.9168,4179.0,4178.9,1.55917]
[1758647557542,0.1769,4179.5,4179.3,0.43043]
[1758647557742,0.2926,4179.4,4179.3,0.99413]
[1758647558243,1.0269,4179.4,4179.3,0.99413]
[1758647558441,0.4473,4179.4,4179.3,1.31313]
[1758647559346,1.17032,4179.4,4179.3,0.8827]
[1758647559554,0.7399,4179.4,4179.3,1.31313]
[1758647559843,0.43043,4179.3,4179.2,0.43044]
[1758647560052,1.45733,4179.3,4179.2,0.246]
[1758647560546,1.45733,4179.3,4179.2,0.5345]
[1758647560849,1.45733,4179.3,4179.2,0.246]
[1758647561539,0.43045,4179.1,4179.0,3.2078]
[1758647561744,1.01005,4179.1,4179.0,3.2078]
[1758647562651,1.17571,4178.5,4178.4,3.2078]
[1758647563439,1.01016,4178.1,4178.0,0.96507]
[1758647563644,1.0269,4178.1,4178.0,0.96507]
[1758647564049,1.0269,4178.1,4178.0,1.24027]
[1758647564247,1.45746,4178.1,4178.0,1.24027]
[1758647564456,1.1925,4178.0,4177.9,3.2078]
[1758647565248,1.0269,4177.4,4177.3,3.7423]
[1758647567856,1.0269,4177.4,4177.3,4.0175]
[1758647568755,0.7399,4177.4,4177.3,4.0175]
[1758647569057,0.7399,4177.4,4177.3,4.3547]
[1758647570153,0.7399,4177.4,4177.3,4.0175]
[1758647570757,0.4473,4177.4,4177.3,4.3547]
[1758647571057,0.7399,4177.7,4177.6,0.5637]
[1758647571456,1.0269,4177.7,4177.6,0.5637]
[1758647571957,1.4575,4177.7,4177.6,0.5637]
[1758647572355,1.1705,4177.7,4177.6,0.5637]
[1758647572556,0.4473,4177.7,4177.6,1.57751]
[1758647573354,0.8779,4177.7,4177.6,1.57751]
[1758647573560,0.7399,4177.7,4177.6,1.57751]
[1758647574255,1.1705,4177.7,4177.6,1.57751]
[1758647574559,0.7399,4177.7,4177.6,1.57751]
[1758647575659,1.1705,4177.7,4177.6,1.1469]
[1758647575859,0.7399,4177.7,4177.6,1.57751]
[1758647576463,1.1705,4177.7,4177.6,1.57751]
[1758647576859,1.4507,4177.7,4177.6,0.8097]
[1758647577855,1.0201,4177.7,4177.6,0.99431]
[1758647578059,1.0201,4177.7,4177.6,1.24031]
[1758647578562,1.0201,4177.7,4177.6,1.56631]
[1758647578957,1.42954,4178.3,4178.2,0.5627]
[1758647579168,1.59427,4178.0,4177.9,3.2078]
[1758647579659,1.59427,4178.0,4177.9,3.4787]
[1758647580359,1.1637,4177.5,4177.4,3.2078]
[1758647580561,1.59432,4177.5,4177.4,3.2078]
[1758647580760,0.1647,4178.0,4177.4,4.77313]
[1758647581065,0.7188,4177.9,4177.8,1.31929]
[1758647581266,0.71984,4178.3,4178.2,0.5627]
[1758647581463,1.14933,4178.3,4178.2,0.5627]
[1758647581666,1.42953,4178.3,4178.2,0.5627]
[1758647581854,0.5951,4178.5,4178.4,0.2709]
[1758647582059,3.2078,4178.9,4178.0,0.246]
[1758647582060,1.42948,4178.8,4178.2,0.246]
[1758647582265,0.7188,4178.4,4178.3,0.5627]
[1758647583154,0.7188,4178.4,4178.3,0.8887]
[1758647583973,0.4295,4178.7,4178.6,1.3192]
[1758647584573,0.8844,4179.0,4178.9,0.8887]
[1758647584772,0.8844,4179.0,4178.9,3.7705]
[1758647584961,0.8844,4179.0,4178.9,4.3425]
[1758647585682,0.4295,4179.4,4179.3,0.5627]
[1758647585971,0.7188,4179.7,4179.6,0.5627]
[1758647586469,0.999,4179.7,4179.6,0.5627]
[1758647587171,0.999,4179.7,4179.6,0.2709]
[1758647587862,0.999,4179.7,3671.0,0.00546271]
[1758647587863,0.454,4179.0,4178.9,3.90917]
[1758647588058,1.1637,4179.0,4178.9,3.2078]
[1758647589470,1.1637,4179.0,4178.6,0.4305]
[1758647589471,0.5695,4178.7,4178.6,0.4305]
[1758647589667,0.999,4178.7,4178.6,0.9932]
[1758647589869,0.4295,4178.9,4178.8,1.02738]
[1758647590172,0.7188,4178.9,4178.8,0.8887]
[1758647590667,1.14923,4179.3,4179.2,0.5627]
[1758647591171,1.42943,4179.3,4179.2,0.5627]
[1758647591465,1.42943,4179.3,4179.2,0.2709]
[1758647591669,0.43045,4179.1,4179.0,3.2078]
[1758647591870,0.43048,4178.8,4178.7,0.246]
[1758647592061,1.39558,4178.8,4178.7,0.5257]
[1758647592467,0.9651,4178.8,4178.7,0.5257]
[1758647592866,0.9651,4178.8,4178.7,0.95619]
[1758647593066,0.9651,4178.8,4178.7,1.22819]
[1758647593665,0.9651,4178.8,4178.7,0.5517]
[1758647593976,0.9651,4178.8,4178.7,0.98219]
[1758647594177,1.39558,4178.8,4178.7,0.2797]
[1758647595178,0.9651,4178.8,4178.7,0.5517]
[1758647595774,1.39558,4178.8,4178.7,0.5517]
[1758647596678,1.39558,4178.8,4178.7,0.98219]
[1758647596870,1.39558,4178.8,4178.7,0.8689]
[1758647597178,1.39558,4178.8,4178.7,1.29939]
[1758647597368,1.39558,4178.8,4178.7,0.5517]
[1758647598177,1.39559,4178.7,4178.6,0.246]
[1758647598973,1.56827,4178.0,4177.9,3.4875]
[1758647599175,1.1377,4178.0,4177.9,4.16408]
[1758647599477,1.1377,4178.0,4177.9,4.43608]
[1758647600376,1.1377,4178.0,4177.9,4.0055]
[1758647600568,1.1377,4178.0,4177.9,4.43608]
[1758647601077,1.1377,4178.0,4177.9,4.19008]
[1758647601280,1.1377,4178.0,4177.9,4.43608]
[1758647601761,1.1377,4178.0,4177.9,4.19008]
[1758647601966,1.1377,4178.0,4177.9,4.43608]
[1758647602571,0.8597,4178.0,4177.9,4.75328]
[1758647603571,0.1726,4178.5,4178.4,0.43052]
[1758647603776,0.2864,4178.6,4178.5,0.8571]
[1758647603977,1.398,4178.6,4178.5,0.5458]
[1758647604279,0.9675,4178.6,4178.5,0.97631]
[1758647604574,0.6933,4178.6,4178.5,1.28761]
[1758647604877,0.6933,4178.6,4178.5,0.97631]
[1758647605281,1.398,4178.6,4178.5,0.5458]
[1758647605575,1.56951,4178.5,4178.4,3.2078]
[1758647609782,1.56951,4178.5,4178.4,3.63832]
[1758647610183,1.56951,4178.5,4178.4,3.2078]
[1758647610475,1.56951,4178.5,4178.4,3.63832]
[1758647611481,1.56951,4178.5,4178.4,3.2078]
[1758647612077,1.56951,4178.5,4178.4,3.63832]
[1758647612283,1.56951,4178.5,4178.4,4.18412]
[1758647612683,1.139,4178.5,4178.4,4.18412]
[1758647612884,1.139,4178.5,4178.4,4.49542]
[1758647612885,0.5784,4178.5,4178.4,4.49542]
[1758647613077,0.4069,4178.5,4178.4,4.49542]
[1758647613586,1.39799,4178.8,4178.7,0.97629]
[1758647613779,1.39799,4178.8,4178.7,0.5458]
[1758647613983,0.1726,4179.0,4178.6,0.5122]
[1758647613984,0.99109,4178.7,4178.6,0.5122]
[1758647614185,1.39799,4178.7,4178.6,0.5122]
[1758647614683,1.39799,4178.7,4178.6,0.9427]
[1758647615078,1.39799,4178.7,4178.6,0.5122]
[1758647615391,1.56957,4178.0,4177.9,3.2078]
[1758647615582,1.56957,4178.0,4177.9,3.4528]
[1758647615783,1.56957,4178.0,4177.9,3.88338]
[1758647615984,1.56957,4178.0,4177.9,4.15058]
[1758647616183,1.56957,4178.0,4177.9,3.2078]
[1758647616378,0.43061,4177.6,4177.5,0.43061]
[1758647616686,0.9675,4177.6,4177.5,1.22141]
[1758647617188,0.9675,4177.6,4177.5,1.53271]
[1758647618689,0.5784,4178.0,4177.9,0.8571]
[1758647618886,0.43057,4178.0,4177.9,1.1021]
[1758647619184,1.12387,4178.0,4177.9,1.1021]
[1758647619385,1.29537,4178.0,4177.9,0.7908]
[1758647619592,0.43057,4178.0,4177.9,1.53268]
[1758647619977,0.83747,4178.0,4177.9,1.1021]
[1758647620185,0.83747,4178.0,4177.5,0.5458]
[1758647620186,1.39811,4177.6,4177.5,0.5458]
[1758647620385,0.4069,4177.6,4177.5,1.53272]
[1758647621484,0.4069,4177.6,4177.5,4.74052]
[1758647622692,0.6933,4177.6,4177.5,4.42922]
[1758647623096,0.6933,4177.6,4177.5,4.74052]
[1758647624399,1.39811,4177.6,4177.5,3.9986]
[1758647624702,0.9675,4177.6,4177.5,4.42922]
[1758647625005,0.6933,4177.6,4177.5,4.74052]
[1758647625506,0.88847,4178.0,4177.9,0.5458]
[1758647625703,1.29537,4178.0,4177.9,0.7908]
[1758647626504,0.8648,4178.0,4177.9,0.7908]
[1758647627004,1.29537,4178.0,4177.9,0.7908]
[1758647628006,1.56957,4178.0,4177.9,0.7908]
[1758647629810,1.56957,4178.0,4177.9,0.5122]
[1758647632405,1.56957,4178.0,4177.9,0.245]
[1758647633113,1.56957,4178.0,4177.9,0.5119]
[1758647635404,1.56957,4178.0,4177.9,0.94248]
[1758647635613,1.56957,4178.0,4177.9,0.5119]
[1758647636309,1.10791,4177.6,4177.5,4.17472]
[1758647636516,0.6773,4177.6,4177.5,4.41972]
[1758647638416,0.6773,4177.6,4177.5,4.71662]
[1758647639118,0.6773,4177.6,4177.5,4.41972]
[1758647639618,0.6773,4177.6,4177.5,4.71662]
[1758647640314,1.10791,4177.6,4177.5,3.9891]
[1758647640514,1.36851,4177.6,4177.5,3.9891]
[1758647641218,1.36851,4177.6,4177.5,3.7441]
[1758647641415,1.36851,4177.6,4177.5,3.4528]
[1758647641713,1.36851,4177.6,4177.5,3.2078]
[1758647644015,1.36853,4177.4,4177.3,0.245]
[1758647644220,1.36853,4177.4,4177.3,0.5119]
[1758647644417,1.36853,4177.4,4177.3,0.245]
[1758647645122,0.96076,4177.1,4177.0,3.4747]
[1758647645313,1.36856,4177.1,4177.0,3.9891]
[1758647649013,1.36856,4177.1,4177.0,3.4747]
[1758647649216,1.36856,4177.1,4177.0,3.7197]
[1758647649412,1.27262,4176.5,4176.4,3.4747]
[1758647649623,1.53322,4176.5,4176.4,3.7197]
[1758647651128,1.53322,4176.5,4176.4,3.9891]
[1758647652019,1.53322,4176.5,4176.4,3.4747]
[1758647652226,1.53322,4176.5,4176.4,3.4528]
[1758647652728,1.53322,4176.5,4176.4,0.245]
[1758647653023,0.43075,4176.2,4176.1,0.69576]
[1758647653323,1.39955,4176.2,4176.1,0.265]
[1758647653524,1.39955,4176.2,4176.1,0.51]
[1758647653725,1.39955,4176.2,4176.1,0.7662]
[1758647654120,1.39955,4176.2,4176.1,0.5212]
[1758647654320,1.39955,4176.2,4176.1,0.51]
[1758647655322,1.39958,4175.9,4175.8,3.4728]
[1758647655519,1.39958,4175.9,4175.8,3.2078]
[1758647655824,1.39958,4175.9,4175.8,3.4728]
[1758647656427,1.39958,4175.9,4175.8,3.2078]
[1758647656920,1.39958,4175.9,4175.5,0.245]
[1758647656921,0.43081,4175.7,4175.6,0.265]
[1758647657122,1.39961,4175.7,4175.6,0.265]
[1758647657317,0.9688,4175.7,4175.6,0.69581]
[1758647657520,0.9688,4175.7,4175.6,0.95201]
[1758647657919,1.3996,4175.7,4175.6,0.95201]
[1758647658414,0.9688,4175.7,4175.6,0.95201]
[1758647660523,1.3996,4175.7,4175.6,0.5212]
[1758647662026,0.9688,4175.7,4175.6,0.95201]